Workbook

Sheet DATOS 0 (hidden)
F1: HOJA DE CÁLCULO PARA CALIBRACIÓN DE TERMOHIGRÓMETROS-HUMEDAD
B5: Solicitante: | E5: Laboratorio de Temperatura y Humedad | J5: Número de certificado: | N5: LCTH-
B6: Dirección: | E6: Avenida carrera 50 #26-50 int 2 del CAN, piso 5 | J6: Código interno LCTD-XX-XXXXX (compuesto por N° Radicado) | N6: LCTH-
B7: Ciudad: | E7: Bogotá D.C.
B8: Fecha de recepción: | J8: Unidad de calibración: | N8: %hr
B9: Fecha de calibración: | J9: Método de calibración: | N9: Comparación en medio isotérmicos.
B11: DATOS DEL INSTRUMENTO BAJO CALIBRACIÓN (IBC)
B12: Instrumento: | J12: Intervalo de medición : | M12: 30 | O12: 80 | Q12: %hr
B13: Fabricante: | J13: Resolución: | O13: =+Q12 -> %hr
B14: Modelo: | J14: Canal:
B15: Serie:
B17: DATOS DEL INSTRUMENTO UTILIZADO EN LA CALIBRACIÓN
B18: Instrumento: | E18: Termohigrómetro data logger | J18: Instrumento: | M18: Termohigrómetro digital
B19: Marca: | E19: Lufft | J19: Marca: | M19: YOWEXA
A20: 98 | B20: Serie: | E20: 022.0714.0802.024 | J20: Serie: | M20: 190724GSM0087287
B21: Modelo: | E21: Opus 20 8120-10 | J21: Modelo: | M21: No indica
B22: Certificado No: | E22: 5286 // 5287 | J22: Certificado No: | M22: 5717 // 5720
B23: Proveedor de trazabilidad: | E23: INM | J23: Proveedor de trazabilidad: | M23: INM
B24: Fecha de calibración: | E24: 2021-06-25 // 2021-06-23 | J24: Fecha de calibración: | M24: 2021-01-27
B26: Instrumento: | E26: Cámara climática | J26: Instrumento:
B27: Marca: | E27: Memmer | J27: Marca:
B28: Serie: | E28: W421.0373 | J28: Serie:
B29: Modelo: | E29: HPP110ECO | J29: Modelo:
B30: Certificado No: | E30: MI-0888 | J30: Certificado No:
B31: Proveedor de trazabilidad: | E31: Unión Metrológica | J31: Proveedor de trazabilidad:
B32: Fecha de calibración: | E32: 2022-02-10 | J32: Fecha de calibración:
B34: Instrumento: | J34: Instrumento:
B35: Marca: | J35: Marca:
B36: Serie: | J36: Serie:
B37: Modelo: | J37: Modelo:
B38: Certificado No: | J38: Certificado No:
B39: Proveedor de trazabilidad: | J39: Proveedor de trazabilidad:
B40: Fecha de calibración: | J40: Fecha de calibración:
B42: Verificar que: | I42: SI | J42: NO | K42: OBSERVACIONES
B43: ¿El termohigrómetro está roto?
B46: ¿El termohigrómetro está midiendo similar a la temperatura ambiente?
B49: ¿El termohigrómetro esta libre de golpes o arañazos? | I49: X
B52: ¿El instrumento de medición presenta todas las partes? | K52: Incluye 4 baterias AAA con la mitad de carga
C56: OBSERVACIONES
C61: Grupo de trabajo del laboratorio
C63: No | D63: Nombres | I63: Roles del grupo de trabajo
C64: AC | D64: Astrid Camila Riveros Meza | I64: Responsable de la Dirección Técnica del Laboratorio de Temperatura y Humedad | M64: Metrólogo del Laboratorio Temperatura y Humedad
C66: PV | D66: Pedro José Vargas López | I66: Sustituto del Responsable de la Dirección Técnica del Laboratorio de Temperatura y Humedad | M66: Metrólogo del Laboratorio Temperatura y Humedad

Sheet RT03-F61 (hidden)
D1: HOJA DE CÁLCULO PARA CALIBRACIÓN DE TERMOHIGRÓMETROS-HUMEDAD
D5: Diligenció
A6: Código interno | B6: =+'DATOS 0 '!N6 -> LCTH-
D8: OBSERVACIONES
A15: 1
A16: Humedad Relativa | C16: % hr | D16: Temperatura | F16: °C
A17: n | B17: Patrón %hr | C17: Patrón °C | D17: IBC %hr | E17: IBC °C | F17: Fecha | L17: Patrón Corregido % hr | M17: Patrón Corregido °C
A18: 1 | F18: Hora | L18: =+'RT03-F61'!B18*'interpolación pat'!$B$14+'interpolación pat'!$C$14+B18 -> -8.668796853 | M18: Termohigrómetro digital
A19: 2 | F19: Patrón | L19: =+'RT03-F61'!B19*'interpolación pat'!$B$14+'interpolación pat'!$C$14+B19 -> -8.668796853 | M19: =+C19+0.1 -> 0.1
A20: 3 | F20: Medio | G20: Cámara climática | L20: =+'RT03-F61'!B20*'interpolación pat'!$B$14+'interpolación pat'!$C$14+B20 -> -8.668796853 | M20: 0.1
A21: 4 | F21: Inmersión | H21: cm | I21: THG: | L21: =+'RT03-F61'!B21*'interpolación pat'!$B$14+'interpolación pat'!$C$14+B21 -> -8.668796853 | M21: No indica
A22: 5 | F22: ta, °C | G22: ha, % hr | H22: ta, °C | I22: ha, % hr | L22: =+'RT03-F61'!B22*'interpolación pat'!$B$14+'interpolación pat'!$C$14+B22 -> -8.668796853 | M22: 0.1
A23: 6 | H23: =+F23*'Interpol TH'!$B$16+'Interpol TH'!$C$16+F23 -> 0.2486442918 | I23: =+G23*'Interpol TH'!$F$16+'Interpol TH'!$G$16+G23 -> -14.52692832 | L23: =+'RT03-F61'!B23*'interpolación pat'!$B$14+'interpolación pat'!$C$14+B23 -> -8.668796853 | M23: 0.1
A24: 7 | F24: Estabilidad | G24: =+L28 -> 1.88411095e-15 | H24: =+IF(G24<'Interpolación hor '!D7,"SI","NO") -> SI | L24: =+'RT03-F61'!B24*'interpolación pat'!$B$14+'interpolación pat'!$C$14+B24 -> -8.668796853 | M24: 02:24:00
A25: 8 | F25: ¿PASA EL PUNTO DE CALIBRACIÓN? | G25: =+IF(H24="SI","SI","NO") -> SI | L25: =+'RT03-F61'!B25*'interpolación pat'!$B$14+'interpolación pat'!$C$14+B25 -> -8.668796853 | M25: 0.1
A26: 9 | L26: =+'RT03-F61'!B26*'interpolación pat'!$B$14+'interpolación pat'!$C$14+B26 -> -8.668796853 | M26: 0.1
A27: PROMEDIO | B27: =AVERAGE(B18:B26) ->  | C27: =AVERAGE(C18:C26) ->  | D27: =AVERAGE(D18:D26) ->  | E27: =AVERAGE(E18:E26) ->  | L27: =+AVERAGE(L18:L26) -> -8.668796853 | M27: =+AVERAGE(M18:M26) -> 0.1
A28: DESV EST | B28: =STDEV(B18:B26) ->  | C28: =STDEV(C18:C26) ->  | D28: =STDEV(D18:D26) ->  | E28: =STDEV(E18:E26) ->  | L28: =STDEV(L18:L26) -> 1.88411095e-15 | M28: =STDEV(M18:M26) -> 1.498972404e-17
A30: 2
A31: Humedad Relativa | C31: % hr | D31: Temperatura | F31: °C
A32: n | B32: Patrón %hr | C32: Patrón °C | D32: IBC %hr | E32: IBC °C | F32: Fecha | L32: Patrón Corregido % hr | M32: Patrón Corregido °C
A33: 1 | F33: Hora | L33: =+'RT03-F61'!B33*'interpolación pat'!$B$14+'interpolación pat'!$C$14+B33 -> -8.668796853 | M33: =+C33+0.1 -> 0.1
A34: 2 | F34: Patrón | L34: =+'RT03-F61'!B34*'interpolación pat'!$B$14+'interpolación pat'!$C$14+B34 -> -8.668796853 | M34: =+C34+0.1 -> 0.1
A35: 3 | F35: Medio | G35: Cámara climática | L35: =+'RT03-F61'!B35*'interpolación pat'!$B$14+'interpolación pat'!$C$14+B35 -> -8.668796853 | M35: 0.1
A36: 4 | F36: Inmersión | H36: cm | I36: THG: | L36: =+'RT03-F61'!B36*'interpolación pat'!$B$14+'interpolación pat'!$C$14+B36 -> -8.668796853 | M36: 0.1
A37: 5 | F37: ta, °C | G37: ha, % hr | H37: ta, °C | I37: ha, % hr | L37: =+'RT03-F61'!B37*'interpolación pat'!$B$14+'interpolación pat'!$C$14+B37 -> -8.668796853 | M37: 0.1
A38: 6 | H38: =+F38*'Interpol TH'!$B$16+'Interpol TH'!$C$16+F38 -> 0.2486442918 | I38: =+G38*'Interpol TH'!$F$16+'Interpol TH'!$G$16+G38 -> -14.52692832 | L38: =+'RT03-F61'!B38*'interpolación pat'!$B$14+'interpolación pat'!$C$14+B38 -> -8.668796853 | M38: 0.1
A39: 7 | F39: Estabilidad | G39: =L43 -> 1.88411095e-15 | H39: =+IF(G39<'Interpolación hor '!D8,"SI","NO") -> SI | L39: =+'RT03-F61'!B39*'interpolación pat'!$B$14+'interpolación pat'!$C$14+B39 -> -8.668796853 | M39: 0.1
A40: 8 | F40: ¿PASA EL PUNTO DE CALIBRACIÓN? | G40: =+IF(H39="SI","SI","NO") -> SI | L40: =+'RT03-F61'!B40*'interpolación pat'!$B$14+'interpolación pat'!$C$14+B40 -> -8.668796853 | M40: 02:24:00
A41: 9 | L41: =+'RT03-F61'!B41*'interpolación pat'!$B$14+'interpolación pat'!$C$14+B41 -> -8.668796853 | M41: 0.1
A42: PROMEDIO | B42: =AVERAGE(B33:B41) ->  | C42: =AVERAGE(C33:C41) ->  | D42: =AVERAGE(D33:D41) ->  | E42: =AVERAGE(E33:E41) ->  | L42: =+AVERAGE(L33:L41) -> -8.668796853 | M42: =+AVERAGE(M33:M41) -> 0.1
A43: DESV EST | B43: =STDEV(B33:B41) ->  | C43: =STDEV(C33:C41) ->  | D43: =STDEV(D33:D41) ->  | E43: =STDEV(E33:E41) ->  | L43: =STDEV(L33:L41) -> 1.88411095e-15 | M43: =STDEV(M33:M41) -> 1.47196168e-17
A45: 3
A46: t | C46: % hr | D46: Temperatura | F46: °C
A47: n | B47: Patrón %hr | C47: Patrón °C | D47: IBC %hr | E47: IBC °C | F47: Fecha | L47: Patrón Corregido % hr | M47: Patrón Corregido °C
A48: 1 | F48: Hora | L48: =+'RT03-F61'!B48*'interpolación pat'!$B$14+'interpolación pat'!$C$14+B48 -> -8.668796853 | M48: =+C48+0.1 -> 0.1
A49: 2 | F49: Patrón | L49: =+'RT03-F61'!B49*'interpolación pat'!$B$14+'interpolación pat'!$C$14+B49 -> -8.668796853 | M49: =+C49+0.1 -> 0.1
A50: 3 | F50: Medio | G50: Cámara climática | L50: =+'RT03-F61'!B50*'interpolación pat'!$B$14+'interpolación pat'!$C$14+B50 -> -8.668796853 | M50: 0.1
A51: 4 | F51: Inmersión | H51: cm | I51: THG: | L51: =+'RT03-F61'!B51*'interpolación pat'!$B$14+'interpolación pat'!$C$14+B51 -> -8.668796853 | M51: 0.1
A52: 5 | F52: ta, °C | G52: ha, % hr | H52: ta, °C | L52: =+'RT03-F61'!B52*'interpolación pat'!$B$14+'interpolación pat'!$C$14+B52 -> -8.668796853 | M52: 0.1
A53: 6 | H53: =+F53*'Interpol TH'!$B$16+'Interpol TH'!$C$16+F53 -> 0.2486442918 | L53: =+'RT03-F61'!B53*'interpolación pat'!$B$14+'interpolación pat'!$C$14+B53 -> -8.668796853 | M53: 0.1
A54: 7 | F54: Estabilidad | G54: =L58 -> 1.88411095e-15 | H54: =+IF(G54<'Interpolación hor '!D9,"SI","NO") -> SI | L54: =+'RT03-F61'!B54*'interpolación pat'!$B$14+'interpolación pat'!$C$14+B54 -> -8.668796853 | M54: 0.1
A55: 8 | F55: ¿PASA EL PUNTO DE CALIBRACIÓN? | G55: =+IF(H54="OK","SI","NO") -> NO | L55: =+'RT03-F61'!B55*'interpolación pat'!$B$14+'interpolación pat'!$C$14+B55 -> -8.668796853 | M55: 0.1
A56: 9 | L56: =+'RT03-F61'!B56*'interpolación pat'!$B$14+'interpolación pat'!$C$14+B56 -> -8.668796853 | M56: 0.1
A57: PROMEDIO | B57: =AVERAGE(B48:B56) ->  | D57: =AVERAGE(D48:D56) ->  | E57: =AVERAGE(E48:E56) ->  | L57: =+AVERAGE(L48:L56) -> -8.668796853 | M57: =+AVERAGE(M48:M56) -> 0.1
A58: DESV EST | B58: =STDEV(B48:B56) ->  | C58: =STDEV(C48:C56) ->  | D58: =STDEV(D48:D56) ->  | E58: =STDEV(E48:E56) ->  | L58: =STDEV(L48:L56) -> 1.88411095e-15 | M58: =STDEV(M48:M56) -> 1.47196168e-17
A60: 4
A61: Humedad Relativa | C61: % hr | D61: Temperatura | F61: °C
A62: n | B62: Patrón %hr | C62: Patrón °C | D62: IBC %hr | E62: IBC °C | F62: Fecha | L62: Patrón Corregido % hr | M62: Patrón Corregido °C
A63: 1 | F63: Hora | L63: =+'RT03-F61'!B63*'interpolación pat'!$B$14+'interpolación pat'!$C$14+B63 -> -8.668796853 | M63: =+C63+0.1 -> 0.1
A64: 2 | F64: Patrón | L64: =+'RT03-F61'!B64*'interpolación pat'!$B$14+'interpolación pat'!$C$14+B64 -> -8.668796853 | M64: =+C64+0.1 -> 0.1
A65: 3 | F65: Medio | G65: Cámara climática | L65: =+'RT03-F61'!B65*'interpolación pat'!$B$14+'interpolación pat'!$C$14+B65 -> -8.668796853 | M65: 0.1
A66: 4 | F66: Inmersión | H66: cm | I66: THG: | L66: =+'RT03-F61'!B66*'interpolación pat'!$B$14+'interpolación pat'!$C$14+B66 -> -8.668796853 | M66: 0.1
A67: 5 | F67: ta, °C | G67: ha, % hr | H67: ta, °C | I67: ha, % hr | L67: =+'RT03-F61'!B67*'interpolación pat'!$B$14+'interpolación pat'!$C$14+B67 -> -8.668796853 | M67: 0.1
A68: 6 | H68: =+F68*'Interpol TH'!$B$16+'Interpol TH'!$C$16+F68 -> 0.2486442918 | I68: =+G68*'Interpol TH'!$F$16+'Interpol TH'!$G$16+G68 -> -14.52692832 | L68: =+'RT03-F61'!B68*'interpolación pat'!$B$14+'interpolación pat'!$C$14+B68 -> -8.668796853 | M68: 0.1
A69: 7 | F69: Estabilidad | G69: =+L73 -> 1.88411095e-15 | H69: =+IF(G69<'Interpolación hor '!D52,"SI","NO") -> NO | L69: =+'RT03-F61'!B69*'interpolación pat'!$B$14+'interpolación pat'!$C$14+B69 -> -8.668796853 | M69: 0.1
A70: 8 | F70: ¿PASA EL PUNTO DE CALIBRACIÓN? | G70: =+IF(H69="SI","SI","NO") -> NO | L70: =+'RT03-F61'!B70*'interpolación pat'!$B$14+'interpolación pat'!$C$14+B70 -> -8.668796853 | M70: 0.1
A71: 9 | L71: =+'RT03-F61'!B71*'interpolación pat'!$B$14+'interpolación pat'!$C$14+B71 -> -8.668796853 | M71: 0.1
A72: PROMEDIO | B72: =AVERAGE(B63:B71) ->  | C72: =AVERAGE(C63:C71) ->  | D72: =AVERAGE(D63:D71) ->  | E72: =AVERAGE(E63:E71) ->  | L72: =+AVERAGE(L63:L71) -> -8.668796853 | M72: =+AVERAGE(M63:M71) -> 0.1
A73: DESV EST | B73: =STDEV(B63:B71) ->  | C73: =STDEV(C63:C71) ->  | D73: =STDEV(D63:D71) ->  | E73: =STDEV(E63:E71) ->  | L73: =STDEV(L63:L71) -> 1.88411095e-15 | M73: =STDEV(M63:M71) -> 1.47196168e-17
A75: Punto de histéresis
A76: t | C76: % hr | D76: Temperatura | F76: °C
A77: n | B77: Patrón %hr | C77: Patrón °C | D77: IBC %hr | E77: IBC °C | F77: Fecha | L77: Patrón Corregido %hr | M77: Patrón Corregido °C
A78: 1 | F78: Hora | L78: =+'RT03-F61'!B78*'interpolación pat'!$B$14+'interpolación pat'!$C$14+B78 -> -8.668796853 | M78: =+C78+0.1 -> 0.1
A79: 2 | F79: Patrón | L79: =+'RT03-F61'!B79*'interpolación pat'!$B$14+'interpolación pat'!$C$14+B79 -> -8.668796853 | M79: =+C79+0.1 -> 0.1
A80: 3 | F80: Medio | G80: Cámara climática | L80: =+'RT03-F61'!B80*'interpolación pat'!$B$14+'interpolación pat'!$C$14+B80 -> -8.668796853 | M80: 0.1
A81: 4 | F81: Inmersión | H81: cm | I81: THG: | L81: =+'RT03-F61'!B81*'interpolación pat'!$B$14+'interpolación pat'!$C$14+B81 -> -8.668796853 | M81: 0.1
A82: 5 | F82: ta, °C | G82: ha, % hr | H82: ta, °C | I82: ha, % hr | L82: =+'RT03-F61'!B82*'interpolación pat'!$B$14+'interpolación pat'!$C$14+B82 -> -8.668796853 | M82: 0.1
A83: 6 | H83: =+F83*'Interpol TH'!$B$16+'Interpol TH'!$C$16+F83 -> 0.2486442918 | I83: =+G83*'Interpol TH'!$F$16+'Interpol TH'!$G$16+G83 -> -14.52692832 | L83: =+'RT03-F61'!B83*'interpolación pat'!$B$14+'interpolación pat'!$C$14+B83 -> -8.668796853 | M83: 0.1
A84: 7 | F84: Estabilidad | G84: =L88 -> 1.88411095e-15 | H84: =+IF(G84<'Interpolación hor '!D7,"SI","NO") -> SI | L84: =+'RT03-F61'!B84*'interpolación pat'!$B$14+'interpolación pat'!$C$14+B84 -> -8.668796853 | M84: 0.1
A85: 8 | F85: ¿PASA EL PUNTO DE CALIBRACIÓN? | G85: =+IF(H84="SI","SI","NO") -> SI | L85: =+'RT03-F61'!B85*'interpolación pat'!$B$14+'interpolación pat'!$C$14+B85 -> -8.668796853 | M85: 0.1
A86: 9 | L86: =+'RT03-F61'!B86*'interpolación pat'!$B$14+'interpolación pat'!$C$14+B86 -> -8.668796853 | M86: 0.1
A87: PROMEDIO | B87: =AVERAGE(B78:B86) ->  | C87: =AVERAGE(C78:C86) ->  | D87: =AVERAGE(D78:D86) ->  | E87: =AVERAGE(E78:E86) ->  | L87: =+AVERAGE(L78:L86) -> -8.668796853 | M87: =+AVERAGE(M78:M86) -> 0.1
A88: DESV EST | B88: =STDEV(B78:B86) ->  | C88: =STDEV(C78:C86) ->  | D88: =STDEV(D78:D86) ->  | E88: =STDEV(E78:E86) ->  | L88: =STDEV(L78:L86) -> 1.88411095e-15 | M88: =STDEV(M78:M86) -> 1.47196168e-17
A91: Efecto de la temperatura
A92: t | C92: % hr | E92: °C
A93: n | B93: Patrón %hr | C93: Patrón °C | D93: IBC %hr | E93: IBC °C
A94: 1 | F94: Fecha | L94: Patrón corregido %hr | M94: Patrón corregido °C
A95: 2 | F95: Hora | L95: =+'RT03-F61'!B94*'interpolación pat'!$B$14+'interpolación pat'!$C$14+B94 -> -8.668796853 | M95: =+C95+0.1 -> 0.1
A96: 3 | F96: Patrón | L96: =+'RT03-F61'!B95*'interpolación pat'!$B$14+'interpolación pat'!$C$14+B95 -> -8.668796853 | M96: =+C96+0.1 -> 0.1
A97: 4 | F97: Medio | G97: Cámara climática | L97: =+'RT03-F61'!B96*'interpolación pat'!$B$14+'interpolación pat'!$C$14+B96 -> -8.668796853 | M97: 0.1
A98: 5 | F98: Inmersión | H98: cm | I98: THG: | L98: =+'RT03-F61'!B97*'interpolación pat'!$B$14+'interpolación pat'!$C$14+B97 -> -8.668796853 | M98: 0.1
A99: 6 | F99: ta, °C | G99: ha, % hr | H99: ta, °C | I99: ha, % hr | L99: =+'RT03-F61'!B98*'interpolación pat'!$B$14+'interpolación pat'!$C$14+B98 -> -8.668796853 | M99: 0.1
A100: 7 | H100: =+F100*'Interpol TH'!$B$16+'Interpol TH'!$C$16+F100 -> 0.2486442918 | I100: =+G100*'Interpol TH'!$F$16+'Interpol TH'!$G$16+G100 -> -14.52692832 | L100: =+'RT03-F61'!B99*'interpolación pat'!$B$14+'interpolación pat'!$C$14+B99 -> -8.668796853 | M100: 0.1
A101: 8 | F101: Estabilidad | G101: =L105 -> 1.88411095e-15 | H101: =+IF(G101<'Interpolación hor '!D8,"SI","NO") -> SI | L101: =+'RT03-F61'!B100*'interpolación pat'!$B$14+'interpolación pat'!$C$14+B100 -> -8.668796853 | M101: 0.1
A102: 9 | F102: ¿PASA EL PUNTO DE CALIBRACIÓN? | G102: =+IF(H101="SI","SI","NO") -> SI | L102: =+'RT03-F61'!B101*'interpolación pat'!$B$14+'interpolación pat'!$C$14+B101 -> -8.668796853 | M102: 0.1
A103: PROMEDIO | B103: =AVERAGE(B94:B102) ->  | C103: =AVERAGE(C94:C102) ->  | L103: =+'RT03-F61'!B102*'interpolación pat'!$B$14+'interpolación pat'!$C$14+B102 -> -8.668796853
A104: DESV EST | B104: =STDEV(C94:C102) ->  | C104: =STDEV(B94:B102) ->  | D104: =STDEV(E94:E102) ->  | E104: =STDEV(D94:D102) ->  | L104: =+AVERAGE(L95:L103) -> -8.668796853 | M104: =+AVERAGE(M95:M103) -> 
L105: =STDEV(L95:L103) -> 1.88411095e-15 | M105: =STDEV(M95:M103) -> 

Sheet Interpol TH (hidden)
D1: HOJA DE CÁLCULO PARA CALIBRACIÓN DE TERMOHIGRÓMETROS-HUMEDAD
B6: Número de certificado y fecha de calibración 5720, 2021-01-27 | F6: Número de certificado y fecha de calibración 5717, 2021-01-27
B7: Temperatura °C | F7: Humedad %hr
B8: V medido | C8: Corrección | D8: U | F8: V medido | G8: Corrección | H8: U
B9: 9.7 | C9: 0.2 | D9: 0.2 | F9: 37.1 | G9: -7.1 | H9: 1.7
B10: 24.9 | C10: 0.2 | D10: 0.2 | F10: 54.2 | G10: -4.2 | H10: 1.7
B11: 40 | C11: 0.1 | D11: 0.2 | F11: 79.8 | G11: 1.2 | H11: 1.7
B14: Interpolación | F14: Interpolación
B15: m | C15: b | F15: m | G15: b
B16: =+LINEST(C9:C11,B9:B11,TRUE,TRUE) -> -0.003296687338 | C16: 0.2486442918 | F16: =+LINEST(G9:G11,F9:F11,TRUE,TRUE) -> 0.1956796316 | G16: -14.52692832
B17: 0.001911728094 | C17: 0.05309535835 | F17: 0.0113134034 | G17: 0.6750885807
B18: 0.7483480256 | C18: 0.0409594901 | F18: 0.9966684525 | G18: 0.3438393761 | M18: Termohigrómetro digital
B19: 2.973741921 | C19: 1 | F19: 299.1608087 | G19: 1
B20: 0.004988986837 | C20: 0.001677679829 | F20: 35.36844115 | G20: 0.1182255166
M21: No indica

Sheet Incertidumbre (hidden)
E1: HOJA DE CÁLCULO PARA CALIBRACIÓN DE TERMOHIGRÓMETROS-HUMEDAD
A7: SP °C | B7: =+[4]DATOS!B76 -> 30 | E7: Bogotá D.C. | L7: Incertidumbre Standard | N7: Grados de Libertad | O7: Coeficiente de Sensibilidad | S7: Porcentaje
B8: Fuente de Incertidumbre | E8: Valor Estimado | F8: Unidad | G8: Tipo | H8: Distribución | I8: u | J8: Unidad | K8: Factor | L8: u típica | M8: Unidad | N8: G.L. | O8: Ci | P8: Unidad | Q8: Contribución a u | R8: Unidad | S8: %
B9: Repetibilidad del Patrón 1 | E9: =+[4]DATOS!B87 -> 32.7 | F9: °C | G9: A | H9: N | I9: =+[4]DATOS!B88 -> 7.536443802e-15 | J9: °C | K9: 3 | L9: =I9/K9 -> 2.512147934e-15 | M9: =+J9 -> °C | N9: 8 | O9: 1 | P9: -- | Q9: =ABS(L9*O9) -> 2.512147934e-15 | R9: °C | S9: =(Q9*100%)^2/$L$20^2 ->  | V9: Uniformidad °C | W9: Estabilidad °C
B10: Incertidumbre del Termómetro Patrón 1 | E10: 0 | F10: - | G10: B | H10: N | I10: =+IF(E9<200,V17,V16) -> 4720.380705 | J10: °C | K10: 2 | L10: =I10/K10 -> 2360.190352 | M10: =+J10 -> °C | N10: 200 | O10: 1 | P10: -- | Q10: 2360.190352 | R10: °C | U10: 9150 | V10: =+[4]Incertidumbre!E9^2*'[4]Interpolación hor '!#REF!++[4]Incertidumbre!E9*'[4]Interpolación hor '!#REF!+'[4]Interpolación hor '!#REF! ->  | W10: =+E9^2*'[4]Interpolación hor '!#REF!+E9*'[4]Interpolación hor '!#REF!+'[4]Interpolación hor '!#REF! -> 
B11: Resolución Indicador patrón | E11: 0 | F11: - | G11: B | H11: R | I11: 0.001 | J11: Ohm | K11: 1.732050808 | L11: 0.0005773502692 | M11: Ohm | N11: 1000000 | O11: 0.003925 | P11: °C/Ohm | Q11: 2.266099807e-06 | R11: °C | U11: 7103 | V11: =+E9*'[4]Interpolación hor '!$B$19+'[4]Interpolación hor '!$C$19 -> -0.01091033333 | W11: =+E9*'[4]Interpolación hor '!$B$26+'[4]Interpolación hor '!$C$26 -> -0.0225495
B12: Deriva del Termómetro Patrón 1 | E12: 0 | F12: - | G12: B | H12: R | I12: =+IF($E9<200,[4]Incertidumbre!W17,[4]Incertidumbre!W16) -> 0.01 | J12: Ohm | K12: 1.732050808 | L12: 0.005773502692 | M12: Ohm | N12: 1000000 | O12: 0.003925 | P12: °C/Ohm | Q12: 2.266099807e-05 | R12: °C | U12: 6330 | V12: =+E9*'[4]Interpolación hor '!#REF!+'[4]Interpolación hor '!#REF! ->  | W12: =+E9*'[4]Interpolación hor '!#REF!+'[4]Interpolación hor '!#REF! -> 
B13: Incertidumbre del indicador | E13: 0 | F13: - | G13: B | H13: N | I13: =+IF(E9<200,[4]Incertidumbre!X17,[4]Incertidumbre!X16) ->  | J13: =+IF([4]DATOS!#REF!<200, "Ohm", "mV") ->  | K13: 2 | N13: 200 | O13: 0.003925 | P13: °C/Ohm | R13: °C
B14: Deriva del indicador | E14: 0 | F14: - | G14: B | H14: R | I14: =+IF(E9<200,[4]Incertidumbre!X17/2,X16/2) ->  | J14: =+IF([4]DATOS!#REF!<200, "Ohm", "mV") ->  | K14: 1.732050808 | N14: 1000000 | O14: 0.0039251 | P14: °C/Ohm | R14: °C
B15: Uniformidad del medio | E15: 0 | F15: - | G15: B | H15: R | I15: =+IF(+[4]DATOS!D82=7103,V11,IF([4]DATOS!D82=6330,V12,IF([4]DATOS!D82=9150,V10,"REVISAR"))) -> REVISAR | J15: °C | K15: 1.732050808 | M15: °C | N15: 1000000 | O15: 1 | P15: -- | R15: °C | V15: U sensor °C | W15: deriva °C | X15: U indicador ohm | Y15: Resolución
B16: Estabilidad | E16: 0 | F16: - | G16: B | H16: R | I16: =+IF([4]DATOS!D82=7103,$W$11,IF([4]DATOS!D82=6330,$W$12,IF([4]DATOS!D82=9150,$W$10,"REVISAR"))) -> REVISAR | J16: °C | K16: 1.732050808 | M16: °C | N16: 1000000 | O16: 1 | P16: -- | R16: °C | U16: Ter Tipo R | V16: =+E9^3*'[4]interpolación pat'!$B$24+E9^2*'[4]interpolación pat'!$C$11+E9*'[4]interpolación pat'!$D$21+'[4]interpolación pat'!$E$21 -> 0 | W16: 0.5 | X16: =+[4]DATOS!B87^4*#REF!+[4]DATOS!B87^3*#REF!+[4]DATOS!B87^2*#REF!+[4]DATOS!B87*#REF!+#REF! ->  | Y16: 1e-05
B17: Repetibilidad del Termómetro IBC | E17: =+[4]DATOS!J88 -> 0 | F17: °C | G17: A | H17: N | I17: =+[4]DATOS!T89 -> 0 | J17: °C | K17: 3 | L17: 0 | M17: °C | N17: 8 | O17: 1 | P17: -- | Q17: 0 | R17: °C | U17: PRT pt 100 | V17: =+E9^4*'[4]interpolación pat'!$I$14+E9^3*'[4]interpolación pat'!$J$14+E9^2*'[4]interpolación pat'!$K$14+E9*'[4]interpolación pat'!$L$14+'[4]interpolación pat'!$M$14 -> 4720.380705 | W17: 0.01 | X17: =+[4]DATOS!B87^4*#REF!+[4]DATOS!B87^3*#REF!+[4]DATOS!B87^2*#REF!+[4]DATOS!B87*#REF!+#REF! ->  | Y17: 0.0001
B18: Resolución Indicador | E18: 0 | F18: - | G18: B | H18: R | I18: =+'[4]DATOS 0 RT03-F61'!K13 -> 0.1 | J18: °C | K18: 1.732050808 | L18: 0.05773502692 | M18: Termohigrómetro digital | N18: 1000000 | O18: 1 | P18: -- | Q18: 0.05773502692 | R18: °C
B19: Variación en cero | E19: =+ABS([4]DATOS!#REF!-[4]DATOS!$J$88) ->  | F19: °C | G19: A | H19: R | I19: =+E19/2 ->  | J19: °C | K19: 1.732050808 | M19: °C | N19: 1000000 | O19: 1 | P19: -- | R19: °C
B20: Corrección | E20: =+E9-E17 -> 32.7 | F20: - | G20: A | H20: N | I20: =L20*K20 ->  | J20: °C | K20: =TINV(0.05,N20) ->  | L20: =(SUMSQ(Q9:Q19)^0.5) ->  | M20: °C | N20: =L20^4/(Q9^4/N9+Q10^4/N10+Q11^4/N11+Q12^4/N12+Q13^4/N13+Q14^4/N14+Q15^4/N15+Q16^4/N16+Q17^4/N17+Q18^4/N18+Q19^4/N19) ->  | S20: =SUM(S9:S19) -> 
M21: No indica
E22: Corrección C (°C) | F22: K | H22: °C
E23: =+E20 -> 32.7 | F23: =K20 ->  | G23: ± | H23: =I20 -> 
I24: SE HACE REDONDEO DE DECIMALES TAL COMO LO RECOMIENDA LA GUM
A26: SP %hr | B26: =+[4]DATOS!B16 -> 30 | E26: Valor Estimado | F26: Unidad | G26: Tipo | H26: Distribución | I26: u | J26: Unidad | K26: Factor | L26: Incertidumbre Standard | N26: Grados de Libertad | O26: Coeficiente de Sensibilidad | Q26: Contribución a u | R26: Unidad | S26: Porcentaje
B27: Fuente de Incertidumbre | L27: u típica | M27: Unidad | N27: G.L. | O27: Ci | P27: Unidad | S27: %
A28: 1 | B28: Repetibilidad del patrón | E28: =+[4]DATOS!L27 -> 28.78361615 | F28: %hr | G28: A | H28: N | I28: =+[4]DATOS!L28 -> 0.05085003634 | J28: %hr | K28: 3 | L28: =I28/K28 -> 0.01695001211 | M28: =+J28 -> %hr | N28: 8 | O28: 1 | P28: -- | Q28: =ABS(L28*O28) -> 0.01695001211 | R28: %hr | S28: =(Q28*100%)^2/$L$40^2 -> 0.0002006367925
A29: 2 | B29: Incertidumbre del patrón | E29: 0 | F29: - | G29: B | H29: N | I29: 1.7 | J29: %hr | K29: 2 | L29: =I29/K29 -> 0.85 | M29: =+J29 -> %hr | N29: 200 | O29: 1 | P29: -- | Q29: 0.85 | R29: %hr | S29: =(Q29*100%)^2/$L$40^2 -> 0.5045548695
A30: 3 | B30: Interpolación corrección patrón | E30: 0 | F30: - | G30: B | H30: N | I30: =+SQRT('[4]interpolación pat'!$C$18/(3-2)) -> 0.318029906 | J30: %hr | K30: =+SQRT(3) -> 1.732050808 | L30: 0.1836146519 | M30: %hr | N30: 200 | O30: 1 | P30: -- | Q30: 0.1836146519 | R30: %hr | S30: 0.02354426936
A31: 4 | B31: Efecto de la temperatura del patrón | E31: 0 | F31: %hr | G31: B | H31: R | I31: =+MAX('[4]interpolación pat'!$D$7,'[4]Interpolación hor '!$F$7) -> 1.7 | J31: °C | K31: 1.732050808 | L31: 0.9814954576 | M31: °C | N31: 1000000 | O31: =+ABS([4]DATOS!$B$42-[4]DATOS!$B$103)/ABS([4]DATOS!$C$42-[4]DATOS!$C$103) -> 0.007258514796 | P31: %hr/°C | Q31: 0.007124199302 | R31: %hr | S31: 3.54439954e-05
A32: 5 | B32: Resolución patrón | E32: 00:00:00 | F32: - | G32: B | H32: R | I32: 02:24:00 | J32: %hr | K32: 1.732050808 | L32: 0.05773502692 | M32: %hr | N32: 4637-11-26 | O32: 1900-01-01 | P32: -- | Q32: 01:23:08.306 | R32: %hr | S32: 0.002327819467
A33: 6 | B33: Deriva del termómetro patrón 1 | E33: 0 | F33: - | G33: B | H33: R | I33: 0.7 | J33: %hr | K33: 1.732050808 | L33: 0.4041451884 | M33: %hr | N33: 1000000 | O33: 1 | P33: -- | Q33: 0.4041451884 | R33: %hr | S33: 0.1140631539
A34: 7 | B34: Uniformidad del medio | F34: - | G34: B | H34: R | I34: =+'[4]Interpolación hor '!C7 -> 1.19 | J34: %hr | K34: 1.732050808 | L34: 0.6870468203 | M34: %hr | N34: 1000000 | O34: 1 | P34: -- | Q34: 0.6870468203 | R34: %hr | S34: 0.3296425148
A35: 8 | B35: Estabilidad | E35: 0 | F35: - | G35: B | H35: R | I35: =+'[4]Interpolación hor '!D7 -> 0.26 | J35: %hr | K35: 1.732050808 | L35: 0.15011107 | M35: %hr | N35: 1000000 | O35: 1 | P35: -- | Q35: 0.15011107 | R35: %hr | S35: 0.0157360596
A36: 9 | B36: Repetibilidad del termómetro IBC | E36: =+[4]DATOS!D27 -> 31.72222222 | F36: °C | G36: A | H36: N | I36: =+[4]DATOS!D28 -> 0.04409585518 | J36: %hr | K36: 3 | L36: 0.01469861839 | M36: %hr | N36: 8 | O36: 1 | P36: -- | Q36: 0.01469861839 | R36: %hr | S36: 0.0001508771877
A37: 10 | B37: Resolución indicador IBC | E37: 0 | F37: - | G37: B | H37: R | I37: =+'[4]DATOS 0 RT03-F61'!K13 -> 0.1 | J37: %hr | K37: 1.732050808 | L37: 0.05773502692 | M37: %hr | N37: 1000000 | O37: 1 | P37: -- | Q37: 0.05773502692 | R37: %hr | S37: 0.002327819467
A38: 11 | B38: Histéresis | E38: 0 | F38: - | G38: A | H38: R | I38: =+ABS([4]DATOS!$D$27-[4]DATOS!$D$87) -> 0.1777777778 | J38: %hr | K38: 1.732050808 | L38: 0.1026400479 | M38: %hr | N38: 1000000 | O38: 1 | P38: -- | Q38: 0.1026400479 | R38: %hr | S38: 0.007357059057
A39: 12 | B39: Efecto de la temperatura del patrón | E39: 0 | F39: °C | G39: B | H39: R | I39: =+MAX('[4]interpolación pat'!$D$7,'[4]Interpolación hor '!$F$7) -> 1.7 | J39: °C | K39: 1.732050808 | L39: 0.9814954576 | M39: °C | N39: 1000000 | O39: =+ABS([4]DATOS!$D$42-[4]DATOS!$B$103)/ABS([4]DATOS!$E$42-[4]DATOS!$E$103) -> 0.009402654867 | P39: %hr/°C | Q39: 0.009228663042 | R39: %hr | S39: 5.947687323e-05
B40: Corrección | E40: =+E28-E36 -> -2.93860607 | F40: %hr | G40: A | H40: N | I40: =L40*K40 -> 1900-01-02T08:22:34.364 | J40: %hr | K40: =TINV(0.05,N40) -> 1.962998314 | L40: =(SUMSQ(Q28:Q39)^0.5) -> 1.196643331 | M40: %hr | N40: =L40^4/(Q28^4/N28+Q29^4/N29+Q30^4/N30++Q31^4/N31+Q32^4/N32+Q33^4/N33+Q34^4/N34+Q35^4/N35+Q36^4/N36+Q37^4/N37+Q38^4/N38+Q39^4/N39) -> 1902-02-21T20:01:35.900 | S40: =SUM(S28:S38) -> 0.9999405231
E42: Corrección (%hr) | F42: K | H42: U %hr
E43: =+E40 -> -2.93860607 | F43: =K40 -> 1.962998314 | G43: ± | H43: =I40 -> 2.349008841
I44: SE HACE REDONDEO DE DECIMALES TAL COMO LO RECOMIENDA LA GUM
A47: SP %hr | B47: 50 | E47: Valor Estimado | F47: Unidad | G47: Tipo | H47: Distribución | J47: Unidad | K47: Factor | L47: Incertidumbre Standard | N47: Grados de Libertad | O47: Coeficiente de Sensibilidad | Q47: Contribución a u | R47: Unidad | S47: Porcentaje
B48: Fuente de Incertidumbre | L48: u típica | M48: Unidad | N48: G.L. | O48: Ci | P48: Unidad | S48: %
A49: 1 | B49: Repetibilidad del patrón | E49: =+[4]DATOS!L42 -> 49.42536687 | F49: °C | G49: A | H49: N | I49: =+[4]DATOS!L43 -> 0.05085003634 | J49: %hr | K49: 3 | L49: =I49/K49 -> 0.01695001211 | M49: =+J49 -> %hr | N49: 8 | O49: 1 | P49: -- | Q49: =ABS(L49*O49) -> 0.01695001211 | R49: %hr | S49: =(Q49*100%)^2/$L$61^2 -> 0.0002409051961
A50: 2 | B50: Incertidumbre del termómetro patrón | E50: 0 | F50: - | G50: B | H50: N | I50: 1.7 | J50: %hr | K50: 2 | L50: =I50/K50 -> 0.85 | M50: =+J50 -> %hr | N50: 200 | O50: 1 | P50: -- | Q50: =ABS(L50*O50) -> 0.85 | R50: %hr | S50: =(Q50*100%)^2/$L$61^2 -> 0.605820539
A51: 3 | B51: Interpolación corrección patrón | E51: 0 | F51: - | G51: B | H51: N | I51: =+SQRT('[4]interpolación pat'!$C$18/(3-2)) -> 0.318029906 | J51: %hr | K51: =+K30 -> 1.732050808 | L51: 0.1836146519 | M51: %hr | N51: 200 | O51: 1 | P51: -- | Q51: 0.1836146519 | R51: %hr | S51: 0.02826967455
A52: 4 | B52: Efecto de la temperatura del patrón | E52: 0 | F52: %hr | G52: B | H52: R | J52: °C | K52: 1.732050808 | L52: 0 | M52: °C | N52: 1000000 | O52: =+ABS([4]DATOS!$B$42-[4]DATOS!$B$103)/ABS([4]DATOS!$C$42-[4]DATOS!$C$103) -> 0.007258514796 | P52: %hr/°C | Q52: 0 | R52: %hr | S52: =(Q52*100%)^2/$L$40^2 -> 0
A53: 5 | B53: Resolución indicador patrón | E53: 0 | F53: - | G53: B | H53: R | J53: %hr | K53: 1.732050808 | L53: 0 | M53: %hr | N53: 1000000 | O53: 1 | P53: -- | Q53: 0 | R53: %hr | S53: 0
A54: 6 | B54: Deriva del termómetro patrón 1 | E54: 0 | F54: - | G54: B | H54: R | J54: %hr | K54: 1.732050808 | L54: 0 | M54: %hr | N54: 1000000 | O54: 1 | P54: -- | Q54: 0 | R54: %hr | S54: 0
A55: 7 | B55: Uniformidad del medio | E55: 0 | F55: - | G55: B | H55: R | I55: =+'[4]Interpolación hor '!C8 -> 1.12 | J55: %hr | K55: 1.732050808 | L55: 0.6466323015 | M55: %hr | N55: 1000000 | O55: 1 | P55: -- | Q55: 0.6466323015 | R55: %hr | S55: 0.3506072822
A56: 8 | B56: Estabilidad | E56: 0 | F56: - | G56: B | H56: R | I56: =+'[4]Interpolación hor '!D8 -> 0.107 | J56: %hr | K56: 1.732050808 | L56: 0.0617764788 | M56: %hr | N56: 1000000 | O56: 1 | P56: -- | Q56: 0.0617764788 | R56: %hr | S56: 0.003200018155
A57: 9 | B57: Repetibilidad del termómetro IBC | E57: =+[4]DATOS!D42 -> 50.33333333 | F57: °C | G57: A | H57: N | I57: =+[4]DATOS!D43 -> 0.05 | J57: %hr | K57: 3 | L57: 0.01666666667 | M57: %hr | N57: 8 | O57: 1 | P57: -- | Q57: 0.01666666667 | R57: %hr | S57: 0.0002329183157
A58: 10 | B58: Resolución indicador IBC | E58: 0 | F58: - | G58: B | H58: R | I58: =+I37 -> 0.1 | J58: %hr | K58: 1.732050808 | L58: 0.05773502692 | M58: %hr | N58: 1000000 | O58: 1 | P58: -- | Q58: 0.05773502692 | R58: %hr | S58: 0.002795019788
A59: 11 | B59: Histéresis | E59: 1 | F59: - | G59: A | H59: R | I59: =+I38 -> 0.1777777778 | J59: %hr | K59: 1.732050808 | L59: 0.1026400479 | M59: %hr | N59: 1000000 | O59: 1 | P59: -- | Q59: 0.1026400479 | R59: %hr | S59: 0.008833642786
A60: 12 | B60: Efecto de la temperatura del patrón | E60: 0 | F60: °C | G60: B | H60: R | I60: =+MAX('[4]interpolación pat'!$D$7,'[4]Interpolación hor '!$F$7) -> 1.7 | J60: °C | K60: 1.732050808 | L60: 0.9814954576 | M60: °C | N60: 1000000 | O60: =+ABS([4]DATOS!$D$42-[4]DATOS!$B$103)/ABS([4]DATOS!$E$42-[4]DATOS!$E$103) -> 0.009402654867 | P60: %hr/°C | Q60: 0.009228663042 | R60: %hr | S60: =(Q60*100%)^2/$L$40^2 -> 5.947687323e-05
B61: Corrección | E61: =+E49-E57 -> -0.9079664614 | F61: %hr | G61: A | H61: N | I61: =L61*K61 -> 2.145181878 | J61: %hr | K61: =TINV(0.05,N61) -> 1.964342397 | L61: =(SUMSQ(Q49:Q59)^0.5) -> 1.092061079 | M61: °C | N61: =L61^4/(Q49^4/N49+Q50^4/N50+Q51^4/N51+Q53^4/N53+Q54^4/N54+Q55^4/N55+Q56^4/N56+Q57^4/N57+Q58^4/N58+Q59^4/N59) -> 543.7071033 | S61: =SUM(S49:S59) -> 1
E63: Corrección C (°C) | F63: K | H63: °C
E64: =+E61 -> -0.9079664614 | F64: =K61 -> 1.964342397 | G64: ± | H64: =I61 -> 2.145181878
I65: SE HACE REDONDEO DE DECIMALES TAL COMO LO RECOMIENDA LA GUM
A68: SP °C | B68: =+[4]DATOS!B46 -> 80 | E68: Valor Estimado | F68: Unidad | G68: Tipo | H68: Distribución | I68: u | J68: Unidad | K68: Factor | L68: Incertidumbre Standard | N68: Grados de Libertad | O68: Coeficiente de Sensibilidad | Q68: Contribución a u | R68: Unidad | S68: Porcentaje
B69: Fuente de Incertidumbre | L69: u típica | M69: Unidad | N69: G.L. | O69: Ci | P69: Unidad | S69: %
A70: 1 | B70: Repetibilidad del patrón 1 | E70: =+[4]DATOS!L57 -> 77.60116441 | F70: °C | G70: A | H70: N | I70: =+[4]DATOS!L58 -> 0.03843901437 | J70: %hr | K70: 3 | L70: =I70/K70 -> 0.01281300479 | M70: =+J70 -> %hr | N70: 8 | O70: 1 | P70: -- | Q70: =ABS(L70*O70) -> 0.01281300479 | R70: %hr | S70: =(Q70*100%)^2/$L$82^2 -> 0.0001095396918
A71: 2 | B71: Incertidumbre del termómetro patrón 1 | E71: 0 | F71: - | G71: B | H71: N | I71: 1.7 | J71: %hr | K71: 2 | L71: =I71/K71 -> 0.85 | M71: =+J71 -> %hr | N71: 200 | O71: 1 | P71: -- | Q71: =ABS(L71*O71) -> 0.85 | R71: %hr | S71: =(Q71*100%)^2/$L$82^2 -> 0.4820669846
A72: 3 | B72: Interpolación corrección patrón | E72: 0 | F72: - | G72: B | H72: N | I72: =+SQRT('[4]interpolación pat'!$C$18/(3-2)) -> 0.318029906 | J72: %hr | K72: =+K51 -> 1.732050808 | L72: 0.1836146519 | M72: %hr | N72: 200 | O72: 1 | P72: -- | Q72: 0.1836146519 | R72: %hr | S72: 0.02249490713
A73: 4 | B73: Efecto de la temperatura del patrón | E73: 0 | F73: %hr | G73: B | H73: R | I73: =+MAX(I71,I77) -> 1.7 | J73: °C | K73: 1.732050808 | L73: 0.9814954576 | M73: °C | N73: 1000000 | O73: =+ABS([4]DATOS!$B$42-[4]DATOS!$B$103)/ABS([4]DATOS!$C$42-[4]DATOS!$C$103) -> 0.007258514796 | P73: %hr/°C | Q73: 0.007124199302 | R73: %hr | S73: =(Q73*100%)^2/$L$40^2 -> 3.54439954e-05
A74: 5 | B74: Resolución indicador patrón | E74: 0 | F74: - | G74: B | H74: R | I74: 0.1 | J74: %hr | K74: 1.732050808 | L74: 0.05773502692 | M74: %hr | N74: 1000000 | O74: 1 | P74: -- | Q74: 0.05773502692 | R74: %hr | S74: 0.002224069133
A75: 6 | B75: Deriva del termómetro patrón 1 | E75: 0 | F75: - | G75: B | H75: R | I75: =+I33 -> 0.7 | J75: %hr | K75: 1.732050808 | L75: 0.4041451884 | M75: %hr | N75: 1000000 | O75: 1 | P75: -- | Q75: 0.4041451884 | R75: %hr | S75: 0.1089793875
A76: 7 | B76: Uniformidad del medio | E76: 0 | F76: - | G76: B | H76: R | I76: =+'[4]Interpolación hor '!C9 -> 1.25 | J76: %hr | K76: 1.732050808 | L76: 0.7216878365 | M76: %hr | N76: 1000000 | O76: 1 | P76: -- | Q76: 0.7216878365 | R76: %hr | S76: 0.347510802
A77: 8 | B77: Estabilidad | E77: 0 | F77: - | G77: B | H77: R | I77: =+'[4]Interpolación hor '!D9 -> 0.35 | J77: %hr | K77: 1.732050808 | L77: 0.2020725942 | M77: %hr | N77: 1000000 | O77: 1 | P77: -- | Q77: 0.2020725942 | R77: %hr | S77: 0.02724484688
A78: 9 | B78: Repetibilidad del termómetro IBC | E78: =+[4]DATOS!D57 -> 77.48888889 | F78: °C | G78: A | H78: N | I78: =+[4]DATOS!D58 -> 0.03333333333 | J78: %hr | K78: 3 | L78: 0.01111111111 | M78: %hr | N78: 8 | O78: 1 | P78: -- | Q78: 0.01111111111 | R78: %hr | S78: 8.237293085e-05
A79: 9 | B79: Resolución indicador IBC | E79: 0 | F79: - | G79: B | H79: R | I79: =+I58 -> 0.1 | J79: %hr | K79: 1.732050808 | L79: 0.05773502692 | M79: %hr | N79: 1000000 | O79: 1 | P79: -- | Q79: 0.05773502692 | R79: %hr | S79: 0.002224069133
A80: 10 | B80: Histéresis | E80: 1 | F80: - | G80: A | H80: R | I80: =+I59 -> 0.1777777778 | J80: %hr | K80: 1.732050808 | L80: 0.1026400479 | M80: %hr | N80: 1000000 | O80: 1 | P80: -- | Q80: 0.1026400479 | R80: %hr | S80: 0.007029156766
A81: 12 | B81: Efecto de la temperatura del patrón | E81: 0 | F81: °C | G81: B | H81: R | I81: =+I73 -> 1.7 | J81: °C | K81: 1.732050808 | L81: 0.9814954576 | M81: °C | N81: 1000000 | O81: =+ABS([4]DATOS!$D$42-[4]DATOS!$B$103)/ABS([4]DATOS!$E$42-[4]DATOS!$E$103) -> 0.009402654867 | P81: %hr/°C | Q81: 0.009228663042 | R81: %hr | S81: =(Q81*100%)^2/$L$40^2 -> 5.947687323e-05
B82: Corrección | E82: =+E70-E78 -> 0.1122755197 | F82: %hr | G82: A | H82: N | I82: =L82*K82 -> 2.402848509 | J82: %hr | K82: =TINV(0.05,N82) -> 1.962732708 | L82: =(SUMSQ(Q70:Q80)^0.5) -> 1.22423624 | M82: °C | N82: =L82^4/(Q70^4/N70+Q71^4/N71+Q72^4/N72+Q74^4/N74+Q75^4/N75+Q76^4/N76+Q77^4/N77+Q78^4/N78+Q79^4/N79+Q80^4/N80) -> 858.6574439 | S82: =SUM(S70:S80) -> 1.00000158
E84: Corrección C (°C) | F84: K | H84: °C
E85: =+E82 -> 0.1122755197 | F85: =+K82 -> 1.962732708 | G85: ± | H85: =+I82 -> 2.402848509
I86: SE HACE REDONDEO DE DECIMALES TAL COMO LO RECOMIENDA LA GUM
A89: SP °C | B89: =+[4]DATOS!B61 -> 0 | L89: Incertidumbre Standard | N89: Grados de Libertad | O89: Coeficiente de Sensibilidad | S89: Porcentaje
B90: Fuente de Incertidumbre | E90: Valor Estimado | F90: Unidad | G90: Tipo | H90: Distribución | I90: u | J90: Unidad | K90: Factor | L90: u típica | M90: Unidad | N90: G.L. | O90: Ci | P90: Unidad | Q90: Contribución a u | R90: Unidad | S90: %
B91: Repetibilidad del Patrón 1 | E91: =+[4]DATOS!B63 -> 0 | F91: °C | G91: A | H91: N | I91: =+[4]DATOS!B73 ->  | J91: °C | K91: 3 | L91: =I91/K91 ->  | M91: =+J91 -> °C | N91: 8 | O91: 1 | P91: -- | Q91: =ABS(L91*O91) ->  | R91: °C | S91: =(Q91*100%)^2/$L$82^2 ->  | V91: Uniformidad °C | W91: Estabilidad °C
B92: Incertidumbre del Termómetro Patrón 1 | E92: 0 | F92: - | G92: B | H92: N | I92: =+IF(E91<200,V99,V98) -> 0 | J92: °C | K92: 2 | L92: =I92/K92 -> 0 | M92: =+J92 -> °C | N92: 200 | O92: 1 | P92: -- | Q92: 0 | R92: °C | S92: =(Q92*100%)^2/$L$82^2 -> 0 | U92: 9150 | V92: =+[4]Incertidumbre!E91^2*'[4]Interpolación hor '!#REF!++[4]Incertidumbre!E91*'[4]Interpolación hor '!#REF!+'[4]Interpolación hor '!#REF! ->  | W92: =+E91^2*'[4]Interpolación hor '!#REF!+E91*'[4]Interpolación hor '!#REF!+'[4]Interpolación hor '!#REF! -> 
B93: Resolución Indicador patrón | E93: 0 | F93: - | G93: B | H93: R | I93: 0.001 | J93: Ohm | K93: 1.732050808 | L93: 0.0005773502692 | M93: Ohm | N93: 1000000 | O93: 0.003925 | P93: °C/Ohm | Q93: 2.266099807e-06 | R93: °C | S93: 3.426317504e-12 | U93: 7103 | V93: =+E91*'[4]Interpolación hor '!$B$19+'[4]Interpolación hor '!$C$19 -> -0.01603333333 | W93: =+E91*'[4]Interpolación hor '!$B$26+'[4]Interpolación hor '!$C$26 -> -0.03285
B94: Deriva del Termómetro Patrón 1 | E94: 0 | F94: - | G94: B | H94: R | I94: =+IF($E91<200,[4]Incertidumbre!W99,[4]Incertidumbre!W98) -> 0.01 | J94: °C | K94: 1.732050808 | L94: 0.005773502692 | M94: °C | N94: 1000000 | O94: 1 | P94: -- | Q94: 0.005773502692 | R94: °C | S94: 2.224069133e-05 | U94: 6330 | V94: =+E91*'[4]Interpolación hor '!#REF!+'[4]Interpolación hor '!#REF! ->  | W94: =+E91*'[4]Interpolación hor '!#REF!+'[4]Interpolación hor '!#REF! -> 
B95: Incertidumbre del indicador | E95: 0 | F95: - | G95: B | H95: R | I95: =+IF(E91<200,[4]Incertidumbre!X99,[4]Incertidumbre!X98) ->  | J95: =+IF([4]DATOS!#REF!<200, "Ohm", "mV") ->  | K95: 2 | N95: 200 | O95: 0.003925 | P95: -- | R95: °C
B96: Deriva del indicador | E96: 0 | F96: - | G96: B | H96: R | I96: =+IF(E91<200,[4]Incertidumbre!X99,X98) ->  | J96: =+IF([4]DATOS!#REF!<200, "Ohm", "mV") ->  | K96: 1.732050808 | N96: 1000000 | O96: 0.0039251 | P96: °C/Ohm | R96: °C
B97: Uniformidad del medio | E97: 0 | F97: - | G97: B | H97: R | I97: =+IF([4]DATOS!E65=7103,V93,IF([4]DATOS!E65=6330,V94,IF([4]DATOS!E65=9150,V92,"REVISAR"))) -> REVISAR | J97: °C | K97: 1.732050808 | M97: °C | N97: 1000000 | O97: 1 | P97: -- | R97: °C | V97: U sensor °C | W97: deriva °C | X97: U indicador ohm | Y97: Resolución
B98: Estabilidad | E98: 0 | F98: - | G98: B | H98: R | I98: =+IF([4]DATOS!E65=7103,W93,IF([4]DATOS!E65=6330,W94,IF([4]DATOS!E65=9150,W92,"REVISAR"))) -> REVISAR | J98: °C | K98: 1.732050808 | M98: °C | N98: 1000000 | O98: 1 | P98: -- | R98: °C | U98: Ter Tipo R | V98: =[4]DATOS!B826^3*'[4]interpolación pat'!$B$24+[4]DATOS!B72^2*'[4]interpolación pat'!$C$11+[4]DATOS!B72*'[4]interpolación pat'!$D$21+'[4]interpolación pat'!$E$21 ->  | W98: 0.5 | X98: =+[4]DATOS!B72^4*#REF!+[4]DATOS!B72^3*#REF!+[4]DATOS!B72^2*#REF!+[4]DATOS!B72*#REF!+#REF! ->  | Y98: 1e-05
B99: Repetibilidad del Termómetro IBC | E99: =+[4]DATOS!#REF! ->  | F99: °C | G99: A | H99: N | I99: =+[4]DATOS!#REF! ->  | J99: Ohm | K99: 3 | M99: Ohm | N99: 8 | O99: 0.003925 | P99: -- | R99: °C | U99: PRT pt 100 | V99: =+(E91^4*'[4]interpolación pat'!$I$14+E91^3*'[4]interpolación pat'!$J$14+E91^2*'[4]interpolación pat'!$K$14+E91*'[4]interpolación pat'!$L$14+'[4]interpolación pat'!$M$14) -> 0 | W99: 0.01 | X99: =+[4]DATOS!B72^4*#REF!+[4]DATOS!B72^3*#REF!+[4]DATOS!B72^2*#REF!+[4]DATOS!B72*#REF!+#REF! ->  | Y99: 0.0001
B100: Resolución Indicador patrón | E100: 0 | F100: - | G100: B | H100: R | I100: 0.001 | J100: Ohm | K100: 1.732050808 | L100: 0.0005773502692 | M100: Ohm | N100: 1000000 | O100: 0.003925 | P100: °C/Ohm | Q100: 2.266099807e-06 | R100: °C | S100: 3.426317504e-12
B101: Variación en cero | E101: =+ABS([4]DATOS!#REF!-[4]DATOS!$J$88) ->  | F101: Ohm | G101: A | H101: R | I101: =+E101/2 ->  | J101: °C | K101: 1.732050808 | M101: °C | N101: 1000000 | O101: 1 | P101: -- | R101: °C | S101: =(Q101*100%)^2/$L$102^2 -> 
B102: Corrección | E102: =+E91-E99 ->  | F102: - | G102: A | H102: N | I102: =L102*K102 ->  | J102: °C | K102: =TINV(0.05,N102) ->  | L102: =(SUMSQ(Q91:Q101)^0.5) ->  | M102: °C | N102: =L102^4/(Q91^4/N91+Q92^4/N92+Q93^4/N93+Q94^4/N94+Q95^4/N95+Q96^4/N96+Q97^4/N97+Q98^4/N98+Q99^4/N99+Q100^4/N100+Q101^4/N101) ->  | S102: =SUM(S91:S101) -> 
E103: Corrección C (°C) | F103: K | H103: °C
E104: =+E102 ->  | F104: =+K101 -> 1.732050808 | G104: ± | H104: =+I102 -> 
I105: SE HACE REDONDEO DE DECIMALES TAL COMO LO RECOMIENDA LA GUM

Sheet interpolación pat (hidden)
D1: HOJA DE CÁLCULO PARA CALIBRACIÓN DE TERMOHIGRÓMETROS-HUMEDAD
B5: Patrón de Humedad Número de certificado y fecha de calibración 5287, 2021-06-23 | I5: Patrón Temperatura Número de certificado y fecha de calibración 5286, 2021-06-25
B6: Valor medido % hr | C6: Corrección % hr | D6: U % hr | I6: Valor medido °C | J6: Corrección °C | K6: U °C
B7: 33.4 | C7: -3.4 | D7: 1.7 | I7: 14.8 | J7: 0 | K7: 0.2
B8: 51.1 | C8: -1.1 | D8: 1.7 | I8: 24.8 | J8: 0.1 | K8: 0.2 | P8: 40 | Q8: 0.06 | R8: 0.2
B9: 76.8 | C9: 3.2 | D9: 1.7 | I9: 29.8 | J9: 0.1 | K9: 0.2 | P9: 50 | Q9: 0.07 | R9: 0.044
B12: Lectura % hr | I12: Lectura
A13: grado poli | B13: 1 | C13: 0 | E13: 0 | I13: 1 | J13: 0
A14: coef | B14: =+LINEST(C7:C9,B7:B9,TRUE,TRUE) -> 0.1531704312 | C14: -8.668796853 | I14: =+LINEST(J7:J9,I7:I9,TRUE,TRUE) -> 0.007142857143 | J14: -0.09857142857
B15: 0.01030499126 | C15: 0.58369718 | I15: 0.002474358297 | J15: 0.05928347672
B16: 0.9954940739 | C16: 0.318029906 | I16: 0.8928571429 | J16: 0.02672612419
B17: 220.9299603 | C17: 1 | I17: 8.333333333 | J17: 1
B18: 22.34552365 | C18: 0.1011430211 | I18: 0.005952380952 | J18: 0.0007142857143 | M18: Termohigrómetro digital
M21: No indica
B22: Incertidumbre
B23: 3 | C23: 2 | D23: 1 | E23: 0
B24: =+LINEST(D7:D9,B7:B9^{1,2},1,1) -> 0 | C24: 0 | D24: 1.7
B25: 0 | C25: 0 | D25: 0
B26: 1 | C26: 0

Sheet Interpolación hor (hidden)
C1: HOJA DE CÁLCULO PARA CALIBRACIÓN DE TERMOHIGRÓMETROS-HUMEDAD
B5: 2022-02-10 MI-0888 | E5: Laboratorio de Temperatura y Humedad
B6: Valor medido %hr | C6: Uniformidad %hr | D6: Estabilidad % hr | E6: Valor medido °C | F6: Uniformidad °C | G6: Estabilidad °C
B7: 30 | C7: 1.19 | D7: 0.26 | E7: 10 | F7: 0.46 | G7: 0.079
B8: 50 | C8: 1.12 | D8: 0.107 | E8: 20 | F8: 0.38 | G8: 0.045
B9: 80 | C9: 1.25 | D9: 0.35 | E9: 40 | F9: 0.39 | G9: 0.044
B11: =+LINEST(C7:C9,B7:B9^{2},1,1) -> 1.509787589e-05 | C11: 1.137346939
B12: 1.734936357e-05 | C12: 0.06941191056
B13: 0.4309433077 | C13: 0.06941191056
B14: 0.7572941565 | C14: 1
B17: Uniformidad
B18: 2 | C18: 1 | D18: 0 | M18: Termohigrómetro digital
B19: =+LINEST(C7:C9,B7:B9^{1,2},1,1) -> 0.0001566666667 | C19: -0.01603333333 | D19: 1.53
B20: 0 | C20: 0 | D20: 0
B21: 1 | C21: 0 | M21: No indica
B24: Estabilidad
B25: 2 | C25: 1 | D25: 0
B26: =+LINEST(D7:D9,B7:B9^{1,2},1,1) -> 0.000315 | C26: -0.03285 | D26: 0.962
B27: 0 | C27: 0 | D27: 0
B28: 1 | C28: 0

Sheet RT03-F61.
I3: Certificado N° | J3: =+'DATOS 0 '!L5 -> 0
A4: Información del Cliente
A6: Solicitante: | D6: =+'DATOS 0 '!D5 -> 0
A7: Dirección: | D7: =+'DATOS 0 '!D6 -> 0
A8: Ciudad : | D8: =+'DATOS 0 '!D7 -> 0
A10: Fecha de recepción: | D10: ='DATOS 0 '!D8 -> 00:00:00 | I10: Fecha de calibración: | K10: ='DATOS 0 '!D9 -> 00:00:00
A12: 1. INFORMACIÓN DEL EQUIPO SOMETIDO A CALIBRACIÓN
A14: Objeto: | D14: =+'DATOS 0 '!D12 -> 0
A15: Fabricante: | D15: =+'DATOS 0 '!D13 -> 0
A16: Número de serie: | D16: =+'DATOS 0 '!D15 -> 0
A17: Modelo: | D17: =+'DATOS 0 '!D14 -> 00:00:00
A18: Intervalo de calibración: | D18: =CONCATENATE('DATOS 0 '!K12," ",'DATOS 0 '!M12," a"," ",'DATOS 0 '!L12," ",'DATOS 0 '!M12) -> 30 a 30
A19: Resolución: | D19: =+'DATOS 0 '!K13 -> 0 | E19: % hr
A21: 2. LUGAR Y DIRECCIÓN DE CALIBRACIÓN
A23: Laboratorio de temperatura y humedad, avenida carrera 50 # 26-55, interior 2 del CAN, piso 5.
A25: 3. CÓDIGO INTERNO | E25: =+'DATOS 0 '!L6 -> 0
A27: 4. MÉTODO DE CALIBRACIÓN UTILIZADO
A29: Para la calibración del termohigrómetro en temperatura ambiente, se utilizó el método establecido en el procedimiento técnico INTI, PEC16 de agosto 2015.
A31: 5. CONDICIONES AMBIENTALES
A33: La calibración se realizó bajo condiciones ambientales de:
A34: Temperatura: | D34: 23 °C ± 5 °C
A35: Humedad Relativa: | D35: 37,5 % hr ± 32,5 % hr
I39: Certificado N° | J39: =J3 -> 0
A40: 6. INCERTIDUMBRE DE MEDICIÓN
A42: "La incertidumbre expandida de la medición reportada se establece como la incertidumbre estándar de medición multiplicada por el factor de cobertura "k",y la probabilidad de cobertura, la cual debe ser aproximada al 95 % y no menor a este valor" de acuerdo con el documento: "CGM 100:2008. GUM 1995".
A44: 7. TRAZABILIDAD METROLÓGICA
A46: Propiedad de un resultado de medida por la cual el resultado puede relacionarse con una referencia mediante una cadena ininterrumpida y documentada de calibraciones, cada una de las cuales contribuye a la incertidumbre de medida.
B48: Instrumento | E48: Fabricante | G48: No. de Serie | I48: N° Certificado | J48: Trazabilidad | K48: Fecha de calibración
B49: =+'DATOS 0 '!E26 -> Cámara climática | E49: =+'DATOS 0 '!E27 -> Memmer | G49: =+'DATOS 0 '!E28 -> W421.0373 | I49: =+'DATOS 0 '!E30 -> MI-0888 | J49: =+'DATOS 0 '!E31 -> Unión Metrológica | K49: =+'DATOS 0 '!E24 -> 2021-06-25 // 2021-06-23
B50: =+'DATOS 0 '!E18 -> Termohigrómetro data logger | E50: =+'DATOS 0 '!E19 -> Lufft | G50: =+'DATOS 0 '!E20 -> 022.0714.0802.024 | I50: =+'DATOS 0 '!E22 -> 5286 // 5287 | J50: =+'DATOS 0 '!E23 -> INM | K50: =+'DATOS 0 '!E32:I32 -> 2022-02-10 | L50: 0 | M50: 0 | N50: 0 | O50: 0
A52: 8. RESULTADOS DE LA CALIBRACIÓN
B54: Valor Nominal | D54: Temperatura del patrón | F54: Lectura promedio IBC | G54: Corrección | H54: Incertidumbre Expandida ± U | I54: Factor de cobertura k= 95 % | J54: Límite de Aceptación LA | K54: Cumple
B55: % hr | D55: % hr | F55: % hr | G55: % hr | H55: % hr | I55: % hr | J55: % hr | M55: EMP + | N55: EMP - | P55: LA | Q55: LA
B56: 30 | D56: =+Incertidumbre!E28 -> 28.78361615 | F56: =+Incertidumbre!E36 -> 31.72222222 | G56: =+Incertidumbre!E43 -> -2.93860607 | H56: =+Incertidumbre!H43 -> 2.349008841 | I56: =+Incertidumbre!F43 -> 1.962998314 | J56: =+$G$76-H56 -> 2.650991159 | K56: =+IF(ABS(G56)<J56,"SI","NO") -> NO | M56: =+$G$76 -> 5 | N56: =-M56 -> -5 | O56: 0 | P56: =+J56 -> 2.650991159 | Q56: =-P56 -> -2.650991159
B57: 50 | D57: =+Incertidumbre!E49 -> 49.42536687 | F57: =+Incertidumbre!E57 -> 50.33333333 | G57: =+Incertidumbre!E64 -> -0.9079664614 | H57: =+Incertidumbre!H64 -> 2.145181878 | I57: =+Incertidumbre!F43 -> 1.962998314 | J57: =+$G$76-H57 -> 2.854818122 | K57: =+IF(ABS(G57)<J57,"SI","NO") -> SI | M57: 5 | N57: =-M57 -> -5 | O57: =+($D$57-$D$56)/2+$D$56 -> 39.10449151 | P57: =+J56 -> 2.650991159 | Q57: =-P57 -> -2.650991159
B58: 80 | D58: =+Incertidumbre!E70 -> 77.60116441 | F58: =+Incertidumbre!E78 -> 77.48888889 | G58: =+Incertidumbre!E85 -> 0.1122755197 | H58: =+Incertidumbre!H85 -> 2.402848509 | I58: =+Incertidumbre!F85 -> 1.962732708 | J58: =+$G$76-H58 -> 2.597151491 | K58: =+IF(ABS(G58)+H58<J58,"SI","NO") -> SI | M58: 5 | N58: -5 | O58: =+($D$57-$D$56)/2+$D$56 -> 39.10449151 | P58: =+J57 -> 2.854818122 | Q58: -2.854818122
M59: 5 | N59: -5 | O59: =+($D$58-$D$57)/2+$D$57 -> 63.51326564 | P59: =+J57 -> 2.854818122 | Q59: -2.854818122
M60: 5 | N60: -5 | O60: =+($D$58-$D$57)/2+$D$57 -> 63.51326564 | P60: =+J58 -> 2.597151491 | Q60: -2.597151491
M61: 5 | N61: -5 | O61: =+($D$58-$D$57)/2+D58 -> 91.68906318 | P61: =+J58 -> 2.597151491 | Q61: -2.597151491
M62: 5 | N62: -5 | O62: =+($D$58-$D$57)/2+D58 -> 91.68906318 | P62: =+J58 -> 2.597151491 | Q62: -2.597151491
A74: La declaración de conformidad se aplica teniendo en cuenta el error más la incertidumbre de medición, la cual no deberá superar los errores máximos permitidos (EMP), según lo definido en xxxxxx
F76: EMP | G76: 5 | H76: hr
A81: El riesgo de que los valores aceptados estén fuera del límite de tolerancia es < 2.5% y para losvalores rechazados, el riesgo de estar dentro del límite de tolerancia es <2.5%.
I85: Certificado N° | J85: =J3 -> 0
A86: 10. OBSERVACIONES
A88: * | B88: Los resultados obtenidos en esta calibración, aplican a la información del equipo descrito en el numeral uno (1) del presente certificado.
A89: * | B89: Los resultados obtenidos en el presente certificado se refieren al momento y condiciones en que se realizaron las mediciones.
A90: * | B90: Los laboratorios de la Superintendencia de Industria y Comercio no se responsabilizan de los perjuicios que puedan derivarse del uso inadecuado del equipo calibrado.
A91: * | B91: Se adhiere al equipo calibrado una estampilla identificada con el número del certificado.
A92: * | B92: Se realiza medición en 0hr para calculara la histérisis del sensor de temperatura.
A93: * | B93: En el presente certificado se usa la coma “,” como separador decimal.
A94: * | B94: Este certificado de calibración no puede ser reproducido parcial, ni totalmente, excepto con autorización del laboratorio de la Superintendencia de Industria y Comercio.
A95: * | B95: El certificado de calibración sin las firmas autorizadas no es válido.
A96: * | B96: (* IBC) Instrumento bajo Calibración.
A97: * | B97: Los resultados de la calibración son trazables al Sistema Internacional (SI).
A98: * | B98: =+'DATOS 0 '!B57 -> 0
A100: FIRMAS AUTORIZADAS:
I102: SC
A104: LH | B104: Firma Autorizada | H104: Calibrado por
B105: =VLOOKUP($G103,'DATOS 0 '!C64:P73,2,FALSE) ->  | H105: =VLOOKUP($L103,'DATOS 0 '!C64:P73,2,FALSE) -> 
B106: =VLOOKUP($G103,'DATOS 0 '!C64:P73,7,FALSE) ->  | H106: =VLOOKUP($L103,'DATOS 0 '!C64:P73,11,FALSE) -> 
B109: Fecha de elaboración: | I109: Fecha de emisión:
A111: …………………..Fin de este documento………………………

Sheet RT03-F63 (hidden)
I3: Certificado N° | J3: =+'DATOS 0 '!L5 -> 0
A4: Información del Cliente
A6: Solicitante: | D6: =+'DATOS 0 '!D5 -> 0
A7: Dirección: | D7: =+'DATOS 0 '!D6 -> 0
A8: Ciudad : | D8: =+'DATOS 0 '!D7 -> 0
A10: Fecha de recepción: | D10: ='DATOS 0 '!D8 -> 00:00:00 | I10: Fecha de calibración: | K10: ='DATOS 0 '!D9 -> 00:00:00
A12: 1. INFORMACIÓN DEL EQUIPO SOMETIDO A CALIBRACIÓN
A14: Objeto: | D14: =+'DATOS 0 '!D12 -> 0
A15: Fabricante: | D15: =+'DATOS 0 '!D13 -> 0
A16: Número de serie: | D16: =+'DATOS 0 '!D15 -> 0
A17: Modelo: | D17: =+'DATOS 0 '!D14 -> 00:00:00
A18: Intervalo de calibración: | D18: =CONCATENATE('DATOS 0 '!K12," ",'DATOS 0 '!M12," a"," ",'DATOS 0 '!L12," ",'DATOS 0 '!M12) -> 30 a 30
A19: Resolución: | D19: =+'DATOS 0 '!K13 -> 0 | E19: % hr
A21: 2. LUGAR Y DIRECCIÓN DE CALIBRACIÓN
A23: Laboratorio de temperatura y humedad, avenida carrera 50 # 26-55, interior 2 del CAN, piso 5.
A25: 3. CÓDIGO INTERNO | E25: =+'DATOS 0 '!L6 -> 0
A27: 4. MÉTODO DE CALIBRACIÓN UTILIZADO
A29: Para la calibración del termohigrómetro en temperatura ambiente, se utilizó el método establecido en el procedimiento técnico INTI, PEC16 de agosto 2015.
A31: 5. CONDICIONES AMBIENTALES
A33: La calibración se realizó bajo condiciones ambientales de:
A34: Temperatura: | D34: 23 °C ± 5 °C
A35: Humedad Relativa: | D35: 37,5 % hr ± 32,5 % hr
I39: Certificado N° | J39: =J3 -> 0
A40: 6. INCERTIDUMBRE DE MEDICIÓN
A42: "La incertidumbre expandida de la medición reportada se establece como la incertidumbre estándar de medición multiplicada por el factor de cobertura "k",y la probabilidad de cobertura, la cual debe ser aproximada al 95 % y no menor a este valor" de acuerdo con el documento: "CGM 100:2008. GUM 1995".
A44: 7. TRAZABILIDAD METROLÓGICA
A46: Propiedad de un resultado de medida por la cual el resultado puede relacionarse con una referencia mediante una cadena ininterrumpida y documentada de calibraciones, cada una de las cuales contribuye a la incertidumbre de medida.
B48: Instrumento | E48: Fabricante | G48: No. de Serie | I48: N° Certificado | J48: Trazabilidad | K48: Fecha de calibración
B49: =+'DATOS 0 '!E26 -> Cámara climática | E49: =+'DATOS 0 '!E27 -> Memmer | G49: =+'DATOS 0 '!E28 -> W421.0373 | I49: =+'DATOS 0 '!E30 -> MI-0888 | J49: =+'DATOS 0 '!E31 -> Unión Metrológica | K49: =+'DATOS 0 '!E24 -> 2021-06-25 // 2021-06-23
B50: =+'DATOS 0 '!E18 -> Termohigrómetro data logger | E50: =+'DATOS 0 '!E19 -> Lufft | G50: =+'DATOS 0 '!E20 -> 022.0714.0802.024 | I50: =+'DATOS 0 '!E22 -> 5286 // 5287 | J50: =+'DATOS 0 '!E23 -> INM | K50: =+'DATOS 0 '!E32:I32 -> 2022-02-10 | L50: 0 | M50: 0 | N50: 0 | O50: 0
A52: 8. RESULTADOS DE LA CALIBRACIÓN
B54: Valor Nominal | D54: Temperatura del patrón | F54: Lectura promedio IBC | G54: Corrección | H54: Incertidumbre Expandida ± U | I54: Factor de cobertura k= 95 % | J54: Límite de Aceptación LA | K54: Cumple
B55: % hr | D55: % hr | F55: % hr | G55: % hr | H55: % hr | I55: % hr | J55: % hr | M55: EMP + | N55: EMP - | P55: LA | Q55: LA
B56: 30 | D56: =+Incertidumbre!E28 -> 28.78361615 | F56: =+Incertidumbre!E36 -> 31.72222222 | G56: =+Incertidumbre!E43 -> -2.93860607 | H56: =+Incertidumbre!H43 -> 2.349008841 | I56: =+Incertidumbre!F43 -> 1.962998314 | J56: =+$G$76-H56 -> 2.650991159 | K56: =+IF(ABS(G56)<J56,"SI","NO") -> NO | M56: =+$G$76 -> 5 | N56: =-M56 -> -5 | O56: 0 | P56: =+J56 -> 2.650991159 | Q56: =-P56 -> -2.650991159
B57: 50 | D57: =+Incertidumbre!E49 -> 49.42536687 | F57: =+Incertidumbre!E57 -> 50.33333333 | G57: =+Incertidumbre!E64 -> -0.9079664614 | H57: =+Incertidumbre!H64 -> 2.145181878 | I57: =+Incertidumbre!F43 -> 1.962998314 | J57: =+$G$76-H57 -> 2.854818122 | K57: =+IF(ABS(G57)<J57,"SI","NO") -> SI | M57: 5 | N57: =-M57 -> -5 | O57: =+($D$57-$D$56)/2+$D$56 -> 39.10449151 | P57: =+J56 -> 2.650991159 | Q57: =-P57 -> -2.650991159
B58: 80 | D58: =+Incertidumbre!E70 -> 77.60116441 | F58: =+Incertidumbre!E78 -> 77.48888889 | G58: =+Incertidumbre!E85 -> 0.1122755197 | H58: =+Incertidumbre!H85 -> 2.402848509 | I58: =+Incertidumbre!F85 -> 1.962732708 | J58: =+$G$76-H58 -> 2.597151491 | K58: =+IF(ABS(G58)+H58<J58,"SI","NO") -> SI | M58: 5 | N58: -5 | O58: =+($D$57-$D$56)/2+$D$56 -> 39.10449151 | P58: =+J57 -> 2.854818122 | Q58: -2.854818122
M59: 5 | N59: -5 | O59: =+($D$58-$D$57)/2+$D$57 -> 63.51326564 | P59: =+J57 -> 2.854818122 | Q59: -2.854818122
M60: 5 | N60: -5 | O60: =+($D$58-$D$57)/2+$D$57 -> 63.51326564 | P60: =+J58 -> 2.597151491 | Q60: -2.597151491
M61: 5 | N61: -5 | O61: =+($D$58-$D$57)/2+D58 -> 91.68906318 | P61: =+J58 -> 2.597151491 | Q61: -2.597151491
M62: 5 | N62: -5 | O62: =+($D$58-$D$57)/2+D58 -> 91.68906318 | P62: =+J58 -> 2.597151491 | Q62: -2.597151491
A74: La declaración de conformidad se aplica teniendo en cuenta el error más la incertidumbre de medición, la cual no deberá superar los errores máximos permitidos (EMP), según lo definido en xxxxxx
F76: EMP | G76: 5 | H76: hr
A81: El riesgo de que los valores aceptados estén fuera del límite de tolerancia es < 2.5% y para losvalores rechazados, el riesgo de estar dentro del límite de tolerancia es <2.5%.
I85: Certificado N° | J85: =J3 -> 0
A86: 10. OBSERVACIONES
A88: * | B88: Los resultados obtenidos en esta calibración, aplican a la información del equipo descrito en el numeral uno (1) del presente certificado.
A89: * | B89: Los resultados obtenidos en el presente certificado se refieren al momento y condiciones en que se realizaron las mediciones.
A90: * | B90: Los laboratorios de la Superintendencia de Industria y Comercio no se responsabilizan de los perjuicios que puedan derivarse del uso inadecuado del equipo calibrado.
A91: * | B91: Se adhiere al equipo calibrado una estampilla identificada con el número del certificado.
A92: * | B92: Se realiza medición en 0hr para calculara la histérisis del sensor de temperatura.
A93: * | B93: En el presente certificado se usa la coma “,” como separador decimal.
A94: * | B94: Este certificado de calibración no puede ser reproducido parcial, ni totalmente, excepto con autorización del laboratorio de la Superintendencia de Industria y Comercio.
A95: * | B95: El certificado de calibración sin las firmas autorizadas no es válido.
A96: * | B96: (* IBC) Instrumento bajo Calibración.
A97: * | B97: Los resultados de la calibración son trazables al Sistema Internacional (SI).
A98: * | B98: =+'DATOS 0 '!B57 -> 0
A100: FIRMAS AUTORIZADAS:
I102: SC
A104: LH | B104: Firma Autorizada | H104: Calibrado por
B105: =VLOOKUP($G103,'DATOS 0 '!C64:P73,2,FALSE) ->  | H105: =VLOOKUP($L103,'DATOS 0 '!C64:P73,2,FALSE) -> 
B106: =VLOOKUP($G103,'DATOS 0 '!C64:P73,7,FALSE) ->  | H106: =VLOOKUP($L103,'DATOS 0 '!C64:P73,11,FALSE) -> 
B109: Fecha de elaboración: | I109: Fecha de emisión:
A111: …………………..Fin de este documento………………………

Sheet RT03-F64 (hidden)
I3: Informe N° | J3: ='[5]Datos 0'!Q5 -> 0
A4: Información del Cliente
A6: Solicitante: | D6: ='[5]Datos 0'!F5 -> 0
A7: Dirección: | D7: ='[5]Datos 0'!F6 -> 0
A8: Ciudad : | D8: ='[5]Datos 0'!F7 -> 0
A10: Fecha de recepción: | D10: ='[5]Datos 0'!F8 -> 00:00:00
A12: 1. INFORMACIÓN DEL EQUIPO
A14: Objeto: | D14: ='[5]Datos 0'!D14 -> 0
A15: Fabricante: | D15: ='[5]Datos 0'!D15 -> 0
A16: Número de serie: | D16: ='[5]Datos 0'!D17 -> 0
A17: Modelo: | D17: ='[5]Datos 0'!D16 -> 00:00:00
A18: Intervalo de calibración: | D18: =CONCATENATE('DATOS 0 '!K12," ",'DATOS 0 '!M12," a"," ",'DATOS 0 '!L12," ",'DATOS 0 '!M12) -> 30 a 30
A19: Resolución: | D19: =+'[6]DATOS 0'!L14 -> 0.01 | E19: °C
A21: 2. LUGAR Y DIRECCIÓN
A23: Laboratorio de calibración de temperatura y humedad, avenida carrera 50 # 26-55, interior 2 del CAN
A25: 3. CÓDIGO INTERNO | D25: ='DATOS 0 '!N6 -> LCTH-
I38: Informe N° | J38: =J3 -> 0
A39: 4. REGISTRO FOTOGRÁFICO
I83: Informe N° | J83: =J3 -> 0
A85: 5. OBSERVACIONES
A96: FIRMAS AUTORIZADAS:
I98: SC
A100: LH | B100: Autorizado por | G100: Elaborado por
B101: =VLOOKUP($F99,'DATOS 0 '!C64:P73,2,FALSE) ->  | G101: =VLOOKUP($J99,'DATOS 0 '!C64:P73,2,FALSE) -> 
B102: =VLOOKUP($F99,'DATOS 0 '!C64:P73,7,FALSE) ->  | G102: =VLOOKUP($J99,'DATOS 0 '!C64:P73,11,FALSE) -> 
B105: Fecha de elaboración: | D105: 2021-06-21 | G105: Fecha de emisión: | I105: 2021-06-21
A107: …………………..Fin de este documento………………………
